[Event "Early-Titled-Tuesday-Blitz-March-19-2024"]
[Site "Chess.com"]
[Date "2024.03.19"]
[Round "3"]
[White "Susal_De_Silva"]
[Black "Firouzja2003"]
[Result "0-1"]
[WhiteElo "2814"]
[BlackElo "3085"]
[TimeControl "180+1"]
[EndTime "8:29:32 PDT"]
[Termination "Firouzja2003 won by resignation"]

1. e4 {[%clk 0:03:00.9]} 1... c5 {[%clk 0:03:00]} 2. Nf3 {[%clk 0:03:01.2]} 2...
d6 {[%clk 0:03:00.6]} 3. Bb5+ {[%clk 0:03:01.5]} 3... Nd7 {[%clk 0:03:00.9]} 4.
Ba4 {[%clk 0:03:02]} 4... a6 {[%clk 0:03:01.2]} 5. c4 {[%clk 0:03:01.6]} 5... e5
{[%clk 0:02:58.2]} 6. Nc3 {[%clk 0:03:01]} 6... Ne7 {[%clk 0:02:58.7]} 7. O-O
{[%clk 0:03:01.2]} 7... Nc6 {[%clk 0:02:59]} 8. d3 {[%clk 0:03:00]} 8... Be7
{[%clk 0:02:59.4]} 9. Nd5 {[%clk 0:02:57.6]} 9... Nb6 {[%clk 0:02:58.2]} 10.
Nxe7 {[%clk 0:02:51]} 10... Qxe7 {[%clk 0:02:58.2]} 11. Bxc6+ {[%clk 0:02:47.1]}
11... bxc6 {[%clk 0:02:58.4]} 12. Ne1 {[%clk 0:02:42.5]} 12... O-O {[%clk
0:02:55.2]} 13. f4 {[%clk 0:02:41.9]} 13... f5 {[%clk 0:02:54.2]} 14. fxe5
{[%clk 0:02:38.2]} 14... dxe5 {[%clk 0:02:55.1]} 15. exf5 {[%clk 0:02:32]} 15...
Bxf5 {[%clk 0:02:56]} 16. Be3 {[%clk 0:02:32]} 16... e4 {[%clk 0:02:50.3]} 17.
dxe4 {[%clk 0:02:14.4]} 17... Nxc4 {[%clk 0:02:50.8]} 18. Qb3 {[%clk 0:02:02.2]}
18... Be6 {[%clk 0:02:51.2]} 19. Rxf8+ {[%clk 0:01:55.8]} 19... Rxf8 {[%clk
0:02:51]} 20. Qc3 {[%clk 0:01:55.5]} 20... Bd5 {[%clk 0:02:39.8]} 21. Nf3 {[%clk
0:01:37.1]} 21... Nxe3 {[%clk 0:02:12.4]} 22. Qxe3 {[%clk 0:01:21.6]} 22... Qxe4
{[%clk 0:02:12.4]} 23. Qxe4 {[%clk 0:01:07.9]} 23... Bxe4 {[%clk 0:02:12.9]} 24.
Nd2 {[%clk 0:01:08.2]} 24... Bd5 {[%clk 0:02:12.6]} 25. Rc1 {[%clk 0:01:05.3]}
25... Re8 {[%clk 0:02:03.6]} 26. Kf2 {[%clk 0:00:52.6]} 26... Bxg2 {[%clk
0:02:03.6]} 27. Rxc5 {[%clk 0:00:44.9]} 27... Bd5 {[%clk 0:02:04.2]} 28. b3
{[%clk 0:00:36.3]} 28... g5 {[%clk 0:02:02]} 29. Ra5 {[%clk 0:00:35.2]} 29...
Rf8+ {[%clk 0:01:57.3]} 30. Ke3 {[%clk 0:00:34.3]} 30... h5 {[%clk 0:01:53.8]}
31. Rxa6 {[%clk 0:00:34]} 31... g4 {[%clk 0:01:54.3]} 32. Ra4 {[%clk 0:00:31.1]}
32... Kg7 {[%clk 0:01:52.1]} 33. Rf4 {[%clk 0:00:31.1]} 33... Re8+ {[%clk
0:01:51.4]} 34. Kf2 {[%clk 0:00:31.3]} 34... Kg6 {[%clk 0:01:50]} 35. a4 {[%clk
0:00:30.7]} 35... Kg5 {[%clk 0:01:50.3]} 36. Rd4 {[%clk 0:00:28.8]} 36... Kh4
{[%clk 0:01:49.2]} 37. Rd3 {[%clk 0:00:20.9]} 37... Ra8 {[%clk 0:01:29.2]} 38.
Nf1 {[%clk 0:00:18.9]} 38... Rf8+ {[%clk 0:01:14.7]} 39. Kg1 {[%clk 0:00:17.7]}
39... Re8 {[%clk 0:01:14.9]} 40. Ne3 {[%clk 0:00:17.2]} 40... Be4 {[%clk
0:01:14.9]} 41. Rc3 {[%clk 0:00:17]} 41... Rd8 {[%clk 0:01:13.6]} 42. Rc4 {[%clk
0:00:11.6]} 42... Bf3 {[%clk 0:01:09]} 43. Nf5+ {[%clk 0:00:10.8]} 43... Kh3
{[%clk 0:01:07.9]} 44. Nd4 {[%clk 0:00:11.4]} 44... Be4 {[%clk 0:00:58.7]} 45.
Rc3+ {[%clk 0:00:07.7]} 45... Kh4 {[%clk 0:00:59.2]} 46. Ne2 {[%clk 0:00:06.8]}
46... Rd2 {[%clk 0:00:56.2]} 47. Re3 {[%clk 0:00:05]} 47... Bf3 {[%clk
0:00:55.5]} 48. Kf2 {[%clk 0:00:04.1]} 48... Kh3 {[%clk 0:00:47.2]} 49. Ke1
{[%clk 0:00:04.2]} 49... Ra2 {[%clk 0:00:31.7]} 50. Ng1+ {[%clk 0:00:02.9]}
50... Kg2 {[%clk 0:00:31.8]} 51. Ne2 {[%clk 0:00:02.2]} 51... Kxh2 {[%clk
0:00:30.4]} 52. Nd4 {[%clk 0:00:02.6]} 52... Kg2 {[%clk 0:00:30.4]} 53. Rd3
{[%clk 0:00:02.1]} 53... c5 {[%clk 0:00:25.9]} 54. Rd2+ {[%clk 0:00:01.7]} 54...
Rxd2 {[%clk 0:00:25.8]} 55. Nxf3 {[%clk 0:00:02.6]} 55... gxf3 {[%clk
0:00:25.9]} 56. Kxd2 {[%clk 0:00:03.5]} 0-1

[Event "Early-Titled-Tuesday-Blitz-March-19-2024"]
[Site "Chess.com"]
[Date "2024.03.19"]
[Round "3"]
[White "Kazmin_Semyon"]
[Black "superchess02"]
[Result "1/2-1/2"]
[WhiteElo "2542"]
[BlackElo "2827"]
[TimeControl "180+1"]
[EndTime "8:29:32 PDT"]
[Termination "Game drawn - insufficient material"]

1. e4 {[%clk 0:02:57.6]} 1... e5 {[%clk 0:02:56.8]} 2. Nf3 {[%clk 0:02:57.5]}
2... Nc6 {[%clk 0:02:57.5]} 3. Bc4 {[%clk 0:02:57.4]} 3... Nf6 {[%clk
0:02:57.4]} 4. d3 {[%clk 0:02:54.8]} 4... h6 {[%clk 0:02:55.5]} 5. c3 {[%clk
0:02:50]} 5... d6 {[%clk 0:02:55.2]} 6. O-O {[%clk 0:02:48.3]} 6... g5 {[%clk
0:02:54.4]} 7. a4 {[%clk 0:02:48.2]} 7... Bg7 {[%clk 0:02:52.1]} 8. a5 {[%clk
0:02:48.6]} 8... a6 {[%clk 0:02:52.5]} 9. b4 {[%clk 0:02:42.9]} 9... O-O {[%clk
0:02:52.8]} 10. Nbd2 {[%clk 0:02:43.1]} 10... d5 {[%clk 0:02:52.4]} 11. Bb3
{[%clk 0:02:36.5]} 11... Be6 {[%clk 0:02:52.1]} 12. h3 {[%clk 0:02:25.2]} 12...
Re8 {[%clk 0:02:50.2]} 13. Re1 {[%clk 0:02:23.3]} 13... Qd7 {[%clk 0:02:50.6]}
14. exd5 {[%clk 0:02:17.7]} 14... Nxd5 {[%clk 0:02:51.5]} 15. Ne4 {[%clk
0:02:16.7]} 15... b6 {[%clk 0:02:44.2]} 16. axb6 {[%clk 0:01:48]} 16... cxb6
{[%clk 0:02:45.1]} 17. Bxd5 {[%clk 0:01:48.6]} 17... Qxd5 {[%clk 0:02:35.3]} 18.
Ng3 {[%clk 0:01:40.2]} 18... Red8 {[%clk 0:02:29.7]} 19. Be3 {[%clk 0:01:33.2]}
19... b5 {[%clk 0:02:18]} 20. Ne4 {[%clk 0:00:53.3]} 20... Qxd3 {[%clk
0:02:06.5]} 21. Qxd3 {[%clk 0:00:44]} 21... Rxd3 {[%clk 0:02:07.4]} 22. Rec1
{[%clk 0:00:24.7]} 22... Bc4 {[%clk 0:01:54.1]} 23. Nc5 {[%clk 0:00:24.3]} 23...
Rdd8 {[%clk 0:01:53.2]} 24. g4 {[%clk 0:00:18.2]} 24... a5 {[%clk 0:01:50.5]}
25. Nb7 {[%clk 0:00:18.4]} 25... Rdc8 {[%clk 0:01:22.6]} 26. Nxa5 {[%clk
0:00:18.8]} 26... Nxa5 {[%clk 0:01:14.2]} 27. bxa5 {[%clk 0:00:19.7]} 27... Bd5
{[%clk 0:01:11.3]} 28. Nd2 {[%clk 0:00:20.1]} 28... e4 {[%clk 0:01:11.7]} 29.
Bd4 {[%clk 0:00:20.7]} 29... Bxd4 {[%clk 0:01:10.3]} 30. cxd4 {[%clk 0:00:21.6]}
30... Rxc1+ {[%clk 0:01:11]} 31. Rxc1 {[%clk 0:00:22.2]} 31... Rxa5 {[%clk
0:01:11.7]} 32. Rc5 {[%clk 0:00:23]} 32... Ra1+ {[%clk 0:01:03.4]} 33. Kh2
{[%clk 0:00:23.5]} 33... Rh1+ {[%clk 0:01:04.1]} 34. Kg3 {[%clk 0:00:20.7]}
34... Rg1+ {[%clk 0:01:00.7]} 35. Kh2 {[%clk 0:00:21.2]} 35... e3 {[%clk
0:01:01.1]} 36. fxe3 {[%clk 0:00:17.2]} 36... Rg2+ {[%clk 0:00:59.8]} 37. Kh1
{[%clk 0:00:17.9]} 37... Rxd2+ {[%clk 0:00:57.7]} 38. Rxd5 {[%clk 0:00:18.3]}
38... Rb2 {[%clk 0:00:53.4]} 39. Rd8+ {[%clk 0:00:17.6]} 39... Kg7 {[%clk
0:00:54]} 40. Rb8 {[%clk 0:00:17.4]} 40... Kf6 {[%clk 0:00:54]} 41. Rb6+ {[%clk
0:00:17.3]} 41... Ke7 {[%clk 0:00:54.5]} 42. Rxh6 {[%clk 0:00:17.1]} 42... f6
{[%clk 0:00:52.6]} 43. Rh7+ {[%clk 0:00:17.1]} 43... Kd6 {[%clk 0:00:52.6]} 44.
Rb7 {[%clk 0:00:17.6]} 44... Kd5 {[%clk 0:00:53.2]} 45. Rb6 {[%clk 0:00:17]}
45... b4 {[%clk 0:00:52.6]} 46. Rxf6 {[%clk 0:00:11]} 46... b3 {[%clk
0:00:52.8]} 47. Rb6 {[%clk 0:00:10.3]} 47... Kc4 {[%clk 0:00:53.1]} 48. h4
{[%clk 0:00:09.2]} 48... Ra2 {[%clk 0:00:44]} 49. hxg5 {[%clk 0:00:05]} 49... b2
{[%clk 0:00:44]} 50. g6 {[%clk 0:00:05.5]} 50... Ra1+ {[%clk 0:00:44.1]} 51. Kg2
{[%clk 0:00:06]} 51... b1=Q {[%clk 0:00:45]} 52. Rxb1 {[%clk 0:00:05.9]} 52...
Rxb1 {[%clk 0:00:45.9]} 53. Kf3 {[%clk 0:00:06.7]} 53... Rb6 {[%clk 0:00:45.9]}
54. Kf4 {[%clk 0:00:06.5]} 54... Rxg6 {[%clk 0:00:46.5]} 55. Kf5 {[%clk
0:00:07.4]} 55... Rg8 {[%clk 0:00:47]} 56. g5 {[%clk 0:00:04.8]} 56... Kd5
{[%clk 0:00:47.4]} 57. e4+ {[%clk 0:00:05.4]} 57... Kxd4 {[%clk 0:00:47.7]} 58.
g6 {[%clk 0:00:04.6]} 58... Rf8+ {[%clk 0:00:47.7]} 59. Ke6 {[%clk 0:00:05.1]}
59... Kxe4 {[%clk 0:00:47.7]} 60. g7 {[%clk 0:00:05.6]} 60... Rc8 {[%clk
0:00:41.4]} 61. Kf7 {[%clk 0:00:05.9]} 61... Kf5 {[%clk 0:00:41.1]} 62. g8=Q
{[%clk 0:00:05.9]} 62... Rc7+ {[%clk 0:00:41.7]} 63. Kf8 {[%clk 0:00:05.7]}
63... Rc8+ {[%clk 0:00:42.1]} 64. Kf7 {[%clk 0:00:06.2]} 64... Rxg8 {[%clk
0:00:42.1]} 65. Kxg8 {[%clk 0:00:06.6]} 1/2-1/2

[Event "Early-Titled-Tuesday-Blitz-March-19-2024"]
[Site "Chess.com"]
[Date "2024.03.19"]
[Round "3"]
[White "UNSTOPPABLE_LEGEND"]
[Black "Pikku_Myy73"]
[Result "1-0"]
[WhiteElo "2508"]
[BlackElo "2269"]
[TimeControl "180+1"]
[EndTime "8:29:33 PDT"]
[Termination "UNSTOPPABLE_LEGEND won by resignation"]

1. Nf3 {[%clk 0:02:59.9]} 1... d5 {[%clk 0:02:56.5]} 2. g3 {[%clk 0:03:00.8]}
2... Nf6 {[%clk 0:02:52.9]} 3. Bg2 {[%clk 0:03:00.9]} 3... c5 {[%clk 0:02:52.3]}
4. O-O {[%clk 0:03:00.1]} 4... g6 {[%clk 0:02:46.9]} 5. c4 {[%clk 0:02:50.9]}
5... d4 {[%clk 0:02:44.2]} 6. b4 {[%clk 0:02:45.9]} 6... cxb4 {[%clk 0:02:41.5]}
7. a3 {[%clk 0:02:46.1]} 7... bxa3 {[%clk 0:02:39.5]} 8. d3 {[%clk 0:02:45.3]}
8... Bg7 {[%clk 0:02:38.9]} 9. Bxa3 {[%clk 0:02:44.9]} 9... O-O {[%clk
0:02:38.6]} 10. Nbd2 {[%clk 0:02:42.9]} 10... Nc6 {[%clk 0:02:37.7]} 11. Qb3
{[%clk 0:02:39.7]} 11... h6 {[%clk 0:02:28.9]} 12. Rfb1 {[%clk 0:02:29.2]} 12...
Re8 {[%clk 0:02:23.3]} 13. c5 {[%clk 0:02:09.8]} 13... Rb8 {[%clk 0:01:44.1]}
14. Nc4 {[%clk 0:02:00.7]} 14... Be6 {[%clk 0:01:38.5]} 15. Qa4 {[%clk
0:01:17.2]} 15... Bd5 {[%clk 0:01:29.7]} 16. Bc1 {[%clk 0:00:47.1]} 16... Nd7
{[%clk 0:01:08.3]} 17. Qa3 {[%clk 0:00:23.1]} 17... Bxc4 {[%clk 0:01:04.5]} 18.
dxc4 {[%clk 0:00:23.3]} 18... e5 {[%clk 0:01:04.7]} 19. Nd2 {[%clk 0:00:19.1]}
19... Qe7 {[%clk 0:00:39]} 20. Ne4 {[%clk 0:00:18.2]} 20... f5 {[%clk
0:00:30.3]} 21. Nd6 {[%clk 0:00:18.5]} 21... e4 {[%clk 0:00:27.8]} 22. Rxb7
{[%clk 0:00:16.7]} 22... Rxb7 {[%clk 0:00:24.8]} 23. Nxb7 {[%clk 0:00:17.6]}
23... Rb8 {[%clk 0:00:21.3]} 24. Nd6 {[%clk 0:00:16.9]} 24... d3 {[%clk
0:00:18.5]} 25. Ra2 {[%clk 0:00:17.2]} 25... dxe2 {[%clk 0:00:18]} 26. Rxe2
{[%clk 0:00:18.1]} 26... Nd4 {[%clk 0:00:18.1]} 27. Rd2 {[%clk 0:00:17.2]} 27...
Qe5 {[%clk 0:00:15.4]} 28. Bb2 {[%clk 0:00:17.2]} 28... Qxc5 {[%clk 0:00:15.2]}
29. Qxc5 {[%clk 0:00:16.4]} 29... Nxc5 {[%clk 0:00:15.5]} 30. Bxd4 {[%clk
0:00:17.3]} 30... Rb1+ {[%clk 0:00:15.5]} 31. Bf1 {[%clk 0:00:17.3]} 31... Nb3
{[%clk 0:00:15.8]} 32. Bxg7 {[%clk 0:00:16.9]} 32... Nxd2 {[%clk 0:00:16]} 33.
Bxh6 {[%clk 0:00:17.2]} 33... Nxf1 {[%clk 0:00:14.8]} 34. Kg2 {[%clk 0:00:17.9]}
34... Rd1 {[%clk 0:00:13.8]} 35. c5 {[%clk 0:00:18.2]} 35... Nd2 {[%clk
0:00:13.6]} 36. c6 {[%clk 0:00:15.4]} 36... Nf3 {[%clk 0:00:13.8]} 37. c7 {[%clk
0:00:15.2]} 37... Rc1 {[%clk 0:00:08.4]} 38. c8=Q+ {[%clk 0:00:15.2]} 38... Rxc8
{[%clk 0:00:08.3]} 39. Nxc8 {[%clk 0:00:16]} 39... a5 {[%clk 0:00:08.6]} 40. Bc1
{[%clk 0:00:16.4]} 40... Kf7 {[%clk 0:00:08.4]} 41. Nb6 {[%clk 0:00:16]} 41...
Ke6 {[%clk 0:00:08.6]} 42. Nc4 {[%clk 0:00:16.4]} 42... a4 {[%clk 0:00:08.4]}
43. Nb6 {[%clk 0:00:17]} 43... Ne1+ {[%clk 0:00:07.7]} 44. Kf1 {[%clk
0:00:16.4]} 44... Nd3 {[%clk 0:00:08.6]} 45. Ba3 {[%clk 0:00:16.2]} 45... Ke5
{[%clk 0:00:07.7]} 46. Nxa4 {[%clk 0:00:16.7]} 46... f4 {[%clk 0:00:07.8]} 47.
Nb2 {[%clk 0:00:17.1]} 47... Nxb2 {[%clk 0:00:04.6]} 48. Bxb2+ {[%clk
0:00:17.2]} 48... Kf5 {[%clk 0:00:04.5]} 49. Bc1 {[%clk 0:00:17.4]} 49... fxg3
{[%clk 0:00:03.9]} 50. hxg3 {[%clk 0:00:18.3]} 50... g5 {[%clk 0:00:04.1]} 51.
Kg2 {[%clk 0:00:18.2]} 51... Kg4 {[%clk 0:00:04.1]} 52. Be3 {[%clk 0:00:18.4]}
52... Kf5 {[%clk 0:00:04.2]} 53. Kh3 {[%clk 0:00:19.3]} 53... g4+ {[%clk
0:00:04.2]} 54. Kh4 {[%clk 0:00:19.7]} 54... Ke5 {[%clk 0:00:04.4]} 55. Kxg4
{[%clk 0:00:20.6]} 55... Kd5 {[%clk 0:00:05.3]} 56. Kf4 {[%clk 0:00:21.5]} 1-0

[Event "Early-Titled-Tuesday-Blitz-March-19-2024"]
[Site "Chess.com"]
[Date "2024.03.19"]
[Round "3"]
[White "ural58"]
[Black "rikchessmx"]
[Result "1/2-1/2"]
[WhiteElo "2494"]
[BlackElo "2278"]
[TimeControl "180+1"]
[EndTime "8:29:34 PDT"]
[Termination "Game drawn - insufficient material"]

1. e4 {[%clk 0:03:00.9]} 1... e5 {[%clk 0:02:57.3]} 2. f4 {[%clk 0:02:57.5]}
2... Nc6 {[%clk 0:02:58.2]} 3. Nf3 {[%clk 0:02:55.4]} 3... exf4 {[%clk
0:02:57.5]} 4. d4 {[%clk 0:02:54.6]} 4... g5 {[%clk 0:02:57.2]} 5. d5 {[%clk
0:02:54.3]} 5... Nb8 {[%clk 0:02:55.4]} 6. Qd4 {[%clk 0:02:53.4]} 6... Qf6
{[%clk 0:02:52.8]} 7. Qxf6 {[%clk 0:02:37.3]} 7... Nxf6 {[%clk 0:02:52.3]} 8.
Nxg5 {[%clk 0:02:38.2]} 8... h6 {[%clk 0:02:52]} 9. Nf3 {[%clk 0:02:37.5]} 9...
Nxe4 {[%clk 0:02:51.9]} 10. Bxf4 {[%clk 0:02:37.1]} 10... d6 {[%clk 0:02:44.8]}
11. Nbd2 {[%clk 0:02:30.2]} 11... Nxd2 {[%clk 0:02:41.4]} 12. Bxd2 {[%clk
0:02:29.3]} 12... Bg7 {[%clk 0:02:41]} 13. O-O-O {[%clk 0:02:28.6]} 13... O-O
{[%clk 0:02:38.7]} 14. Bd3 {[%clk 0:02:19.6]} 14... Nd7 {[%clk 0:02:37]} 15.
Rhe1 {[%clk 0:01:54.4]} 15... Ne5 {[%clk 0:02:36]} 16. Nxe5 {[%clk 0:01:53.8]}
16... dxe5 {[%clk 0:02:36.9]} 17. Bb4 {[%clk 0:01:47.2]} 17... Rd8 {[%clk
0:02:28.9]} 18. Bc4 {[%clk 0:01:44.2]} 18... Bg4 {[%clk 0:02:16.4]} 19. Rd3
{[%clk 0:01:41.5]} 19... a6 {[%clk 0:01:54.3]} 20. Rg3 {[%clk 0:01:28.9]} 20...
Bh5 {[%clk 0:01:45.1]} 21. Bc3 {[%clk 0:01:19.5]} 21... Kh8 {[%clk 0:01:31.1]}
22. Bxe5 {[%clk 0:01:14.6]} 22... Bxe5 {[%clk 0:01:30.5]} 23. Rxe5 {[%clk
0:01:14.1]} 23... Bg6 {[%clk 0:01:29.8]} 24. Re7 {[%clk 0:01:13.2]} 24... Rac8
{[%clk 0:01:28.4]} 25. d6 {[%clk 0:00:48]} 25... cxd6 {[%clk 0:01:26.5]} 26. Bd3
{[%clk 0:00:42]} 26... Bxd3 {[%clk 0:01:23.1]} 27. Rxd3 {[%clk 0:00:39.6]} 27...
Kg7 {[%clk 0:01:20.5]} 28. Rxb7 {[%clk 0:00:38.5]} 28... Rc6 {[%clk 0:01:19.4]}
29. Rf3 {[%clk 0:00:32.3]} 29... Rf8 {[%clk 0:01:19]} 30. c3 {[%clk 0:00:30.3]}
30... Kg6 {[%clk 0:01:18.7]} 31. Rd7 {[%clk 0:00:27.9]} 31... f5 {[%clk
0:01:11.8]} 32. Rg3+ {[%clk 0:00:26.8]} 32... Kf6 {[%clk 0:01:11.8]} 33. Rh7
{[%clk 0:00:26.3]} 33... f4 {[%clk 0:01:06.9]} 34. Rxh6+ {[%clk 0:00:26.3]}
34... Kf5 {[%clk 0:01:06.1]} 35. Rd3 {[%clk 0:00:25.7]} 35... Rd8 {[%clk
0:01:03.1]} 36. Rh5+ {[%clk 0:00:22.7]} 36... Ke4 {[%clk 0:01:02.2]} 37. Rd4+
{[%clk 0:00:22.5]} 37... Ke3 {[%clk 0:01:01]} 38. Rf5 {[%clk 0:00:22.3]} 38...
Rg8 {[%clk 0:00:57.1]} 39. Rfxf4 {[%clk 0:00:21.2]} 39... Rxg2 {[%clk
0:00:56.3]} 40. h4 {[%clk 0:00:20.4]} 40... d5 {[%clk 0:00:52.2]} 41. Rb4 {[%clk
0:00:18.9]} 41... Re6 {[%clk 0:00:48.4]} 42. Rf1 {[%clk 0:00:18.9]} 42... Ke2
{[%clk 0:00:44.7]} 43. Rd1 {[%clk 0:00:19.2]} 43... Kf3 {[%clk 0:00:41.3]} 44.
Rxd5 {[%clk 0:00:18]} 44... Re1+ {[%clk 0:00:40.2]} 45. Rd1 {[%clk 0:00:18]}
45... Ree2 {[%clk 0:00:40.4]} 46. a4 {[%clk 0:00:17.9]} 46... Rc2+ {[%clk
0:00:38.9]} 47. Kb1 {[%clk 0:00:17]} 47... a5 {[%clk 0:00:39.2]} 48. Rb5 {[%clk
0:00:16.5]} 48... Rh2 {[%clk 0:00:38.4]} 49. Rd4 {[%clk 0:00:16.2]} 49... Ke3
{[%clk 0:00:37.6]} 50. Ka2 {[%clk 0:00:15.6]} 50... Rxc3 {[%clk 0:00:36.5]} 51.
Rg4 {[%clk 0:00:14.3]} 51... Rcc2 {[%clk 0:00:34.9]} 52. Rb3+ {[%clk 0:00:14.3]}
52... Kd2 {[%clk 0:00:33.8]} 53. Rd4+ {[%clk 0:00:14.1]} 53... Kc1 {[%clk
0:00:33.8]} 54. Rd5 {[%clk 0:00:13.8]} 54... Rxb2+ {[%clk 0:00:33.8]} 55. Rxb2
{[%clk 0:00:13.9]} 55... Rxb2+ {[%clk 0:00:34.2]} 56. Ka3 {[%clk 0:00:14.8]}
56... Rh2 {[%clk 0:00:32.5]} 57. Kb3 {[%clk 0:00:14.2]} 57... Rh3+ {[%clk
0:00:31.3]} 58. Kc4 {[%clk 0:00:14.2]} 58... Rxh4+ {[%clk 0:00:31.4]} 59. Kb5
{[%clk 0:00:15.1]} 59... Kb2 {[%clk 0:00:29.4]} 60. Kxa5 {[%clk 0:00:15.4]}
60... Kb3 {[%clk 0:00:29.9]} 61. Rb5+ {[%clk 0:00:15.2]} 61... Ka3 {[%clk
0:00:29.3]} 62. Kb6 {[%clk 0:00:14]} 62... Rxa4 {[%clk 0:00:28.9]} 63. Ra5
{[%clk 0:00:14]} 63... Rxa5 {[%clk 0:00:28.9]} 64. Kxa5 {[%clk 0:00:14.3]}
1/2-1/2

[Event "Early-Titled-Tuesday-Blitz-March-19-2024"]
[Site "Chess.com"]
[Date "2024.03.19"]
[Round "3"]
[White "jk13"]
[Black "ATM622"]
[Result "0-1"]
[WhiteElo "2686"]
[BlackElo "2490"]
[TimeControl "180+1"]
[EndTime "8:29:35 PDT"]
[Termination "ATM622 won by checkmate"]

1. e4 {[%clk 0:02:55.7]} 1... c6 {[%clk 0:02:47.6]} 2. Nc3 {[%clk 0:02:55.3]}
2... d5 {[%clk 0:02:44.1]} 3. Nf3 {[%clk 0:02:56.2]} 3... dxe4 {[%clk
0:02:43.8]} 4. Nxe4 {[%clk 0:02:57.1]} 4... Nf6 {[%clk 0:02:43.6]} 5. Qe2 {[%clk
0:02:57.4]} 5... Nxe4 {[%clk 0:02:43.4]} 6. Qxe4 {[%clk 0:02:58.3]} 6... Qd5
{[%clk 0:02:43.2]} 7. Qf4 {[%clk 0:02:57.6]} 7... Nd7 {[%clk 0:02:42.8]} 8. Bc4
{[%clk 0:02:57.1]} 8... Qh5 {[%clk 0:02:34.4]} 9. Ng5 {[%clk 0:02:28]} 9... e6
{[%clk 0:02:19.2]} 10. d4 {[%clk 0:02:23.6]} 10... Be7 {[%clk 0:02:08.8]} 11.
Ne4 {[%clk 0:02:16.6]} 11... e5 {[%clk 0:01:58.7]} 12. dxe5 {[%clk 0:02:03.5]}
12... Nxe5 {[%clk 0:01:50.4]} 13. Bb3 {[%clk 0:01:06.8]} 13... Qf5 {[%clk
0:01:45.1]} 14. Qe3 {[%clk 0:01:03]} 14... O-O {[%clk 0:01:34.4]} 15. O-O {[%clk
0:01:02.8]} 15... Ng4 {[%clk 0:01:32.3]} 16. Qe2 {[%clk 0:01:02.8]} 16... Be6
{[%clk 0:01:24.6]} 17. Ng3 {[%clk 0:01:01.8]} 17... Qe5 {[%clk 0:01:11.1]} 18.
Qxe5 {[%clk 0:00:58.8]} 18... Nxe5 {[%clk 0:01:08.4]} 19. Bxe6 {[%clk
0:00:59.7]} 19... fxe6 {[%clk 0:01:08.9]} 20. Ne4 {[%clk 0:00:44]} 20... Rad8
{[%clk 0:00:58.5]} 21. b3 {[%clk 0:00:40.5]} 21... Rd4 {[%clk 0:00:53.4]} 22. f3
{[%clk 0:00:39.6]} 22... Rxe4 {[%clk 0:00:52.6]} 23. Ba3 {[%clk 0:00:32.9]}
23... Bxa3 {[%clk 0:00:44.5]} 24. fxe4 {[%clk 0:00:33.2]} 24... Bc5+ {[%clk
0:00:44.3]} 25. Kh1 {[%clk 0:00:33.6]} 25... Rd8 {[%clk 0:00:39.6]} 26. Rad1
{[%clk 0:00:34.2]} 26... Rxd1 {[%clk 0:00:33.5]} 27. Rxd1 {[%clk 0:00:35.1]}
27... Bb6 {[%clk 0:00:26.4]} 28. h3 {[%clk 0:00:29.8]} 28... Kf7 {[%clk
0:00:25.5]} 29. g3 {[%clk 0:00:29.5]} 29... h5 {[%clk 0:00:20.6]} 30. Kg2 {[%clk
0:00:29.9]} 30... g5 {[%clk 0:00:20.4]} 31. Kf1 {[%clk 0:00:29.4]} 31... Kg6
{[%clk 0:00:16.6]} 32. Ke2 {[%clk 0:00:28.6]} 32... g4 {[%clk 0:00:16.5]} 33.
hxg4 {[%clk 0:00:25.3]} 33... hxg4 {[%clk 0:00:17.4]} 34. Rh1 {[%clk 0:00:24.3]}
34... Kg7 {[%clk 0:00:13]} 35. Rh5 {[%clk 0:00:23.2]} 35... Nf3 {[%clk
0:00:13.1]} 36. c3 {[%clk 0:00:20.8]} 36... Ng1+ {[%clk 0:00:12.6]} 37. Kd3
{[%clk 0:00:19.3]} 37... Nf3 {[%clk 0:00:12]} 38. Ke2 {[%clk 0:00:17.3]} 38...
Ng1+ {[%clk 0:00:10.1]} 39. Kf1 {[%clk 0:00:17.3]} 39... Nf3 {[%clk 0:00:10.1]}
40. b4 {[%clk 0:00:15.8]} 40... Nd2+ {[%clk 0:00:08.6]} 41. Ke2 {[%clk
0:00:14.8]} 41... Nxe4 {[%clk 0:00:08.7]} 42. Re5 {[%clk 0:00:12.5]} 42... Nxg3+
{[%clk 0:00:07.9]} 43. Ke1 {[%clk 0:00:12.6]} 43... Kf6 {[%clk 0:00:07.3]} 44.
Rc5 {[%clk 0:00:08.8]} 44... Bxc5 {[%clk 0:00:07.3]} 45. bxc5 {[%clk 0:00:09.7]}
45... Ne4 {[%clk 0:00:07.6]} 46. Ke2 {[%clk 0:00:09.1]} 46... Nxc5 {[%clk
0:00:07.9]} 47. Ke3 {[%clk 0:00:09.3]} 47... Ke5 {[%clk 0:00:08.4]} 48. a3
{[%clk 0:00:09.3]} 48... Kd5 {[%clk 0:00:08.5]} 49. c4+ {[%clk 0:00:10.2]} 49...
Kxc4 {[%clk 0:00:08.7]} 50. Kf4 {[%clk 0:00:11.1]} 50... Kb3 {[%clk 0:00:07.2]}
51. Kxg4 {[%clk 0:00:12]} 51... Kxa3 {[%clk 0:00:07.5]} 52. Kf4 {[%clk
0:00:12.9]} 52... Kb4 {[%clk 0:00:07.6]} 53. Ke5 {[%clk 0:00:13.8]} 53... a5
{[%clk 0:00:08.4]} 54. Kd6 {[%clk 0:00:14.7]} 54... a4 {[%clk 0:00:08.7]} 55.
Kc7 {[%clk 0:00:15.6]} 55... a3 {[%clk 0:00:08.6]} 56. Kb6 {[%clk 0:00:16.5]}
56... a2 {[%clk 0:00:08.7]} 57. Kc7 {[%clk 0:00:17.1]} 57... a1=Q {[%clk
0:00:08.8]} 58. Kb8 {[%clk 0:00:16.2]} 58... Qe5+ {[%clk 0:00:06.5]} 59. Ka8
{[%clk 0:00:16.1]} 59... Qc7 {[%clk 0:00:06]} 60. Ka7 {[%clk 0:00:17]} 60... b5+
{[%clk 0:00:06.2]} 61. Ka8 {[%clk 0:00:17.8]} 61... Qb7# {[%clk 0:00:06.5]} 0-1